bitfinex/quotes_ETHUSD_20220220
["timestamp","ask_amount","ask_price","bid_price","bid_amount"]
[1645333033862,13.69997616,2692.1,2692.0,888.03598219]
[1645333034064,13.69997616,2692.1,2692.0,882.45428219]
[1645333034662,13.69997616,2692.1,2692.0,876.87262219]
[1645333035069,13.69997616,2692.1,2692.0,871.29104219]
[1645333035691,13.69997616,2692.1,2692.0,865.70946219]
[1645333036093,13.69997616,2692.1,2692.0,860.09159419]
[1645333036694,13.69997616,2692.1,2692.0,848.92813419]
[1645333037295,12.76963616,2692.1,2692.0,836.83396419]
[1645333037799,12.76963616,2692.1,2692.0,825.67004419]
[1645333037994,12.58753616,2692.1,2692.0,825.48794419]
[1645333038195,12.58753616,2692.1,2692.0,824.55760419]
[1645333038399,12.58753616,2692.1,2692.0,813.39338419]
[1645333038797,12.58753616,2692.1,2692.0,807.81124419]
[1645333039043,12.58753616,2692.1,2692.0,802.22910419]
[1645333039243,16.30886616,2692.1,2692.0,795.71668419]
[1645333039444,16.30886616,2692.1,2692.0,790.13435419]
[1645333040046,16.30886616,2692.1,2692.0,784.55216419]
[1645333040245,16.71580862,2692.1,2692.0,784.55216419]
[1645333040448,16.71580862,2692.1,2692.0,778.97017419]
[1645333040449,16.77080862,2692.1,2692.0,778.97017419]
[1645333041244,16.77080862,2692.1,2692.0,773.38808419]
[1645333041645,16.77080862,2692.1,2692.0,767.80617419]
[1645333041846,16.77080862,2692.1,2692.0,767.73374019]
[1645333042045,16.77080862,2692.1,2692.0,762.15181019]
[1645333042647,16.77080862,2692.1,2692.0,756.57024019]
[1645333043293,16.77080862,2692.1,2692.0,750.98859019]
[1645333043792,16.77080862,2692.1,2692.0,745.40689019]
[1645333044194,16.77080862,2692.1,2692.0,739.82511019]
[1645333044793,16.77080862,2692.1,2692.0,734.24341019]
[1645333045194,15.89438862,2692.1,2692.0,734.24341019]
[1645333045394,15.89438862,2692.1,2692.0,728.66166019]
[1645333045793,15.89438862,2692.1,2692.0,723.07985019]
[1645333046394,15.89438862,2692.1,2692.0,717.49796019]
[1645333047040,16.77080862,2692.1,2692.0,711.91593019]
[1645333047440,16.77080862,2692.1,2692.0,706.33396019]
[1645333047840,16.77080862,2692.1,2692.0,705.78796019]
[1645333048040,16.77080862,2692.1,2692.0,700.20608019]
[1645333048641,16.77080862,2692.1,2692.0,694.62422019]
[1645333049041,16.77080862,2692.1,2692.0,689.04222019]
[1645333049641,21.16226309,2692.1,2692.0,683.46027019]
[1645333050297,21.16226309,2692.1,2692.0,677.30930019]
[1645333050499,21.16226309,2692.1,2692.0,664.94930019]
[1645333050700,21.16226309,2692.1,2692.0,659.36740019]
[1645333051298,21.16226309,2692.1,2692.0,653.78558019]
[1645333051697,21.16226309,2692.1,2692.0,648.20367019]
[1645333052300,21.16226309,2692.1,2692.0,642.62232019]
[1645333052898,21.16226309,2692.1,2692.0,637.04071019]
[1645333053300,21.16226309,2692.1,2692.0,631.45899019]
[1645333053900,21.16226309,2692.1,2692.0,625.87709019]
[1645333054350,21.16226309,2692.1,2692.0,620.29516019]
[1645333054750,21.16226309,2692.1,2692.0,619.69416019]
[1645333054950,21.16226309,2692.1,2692.0,614.11223019]
[1645333055149,22.13355895,2692.1,2692.0,614.11223019]
[1645333055350,55.59429986,2692.1,2692.0,608.2385155]
[1645333055754,62.59429986,2692.1,2692.0,608.2385155]
[1645333055950,62.68041602,2692.1,2692.0,602.6562655]
[1645333056550,62.68041602,2692.1,2692.0,597.0740855]
[1645333057155,62.68041602,2692.1,2692.0,591.4919555]
[1645333057553,58.28896155,2692.1,2692.0,591.4919555]
[1645333057802,58.28896155,2692.1,2692.0,585.9099055]
[1645333058194,62.68041602,2692.1,2692.0,580.3279355]
[1645333058397,58.28896155,2692.1,2692.0,580.3279355]
[1645333058595,62.68041602,2692.1,2692.0,580.2594355]
[1645333058798,58.28896155,2692.1,2692.0,574.6774955]
[1645333059294,73.99041602,2692.1,2692.0,569.0955655]
[1645333059897,73.99041602,2692.1,2692.0,563.5135955]
[1645333060298,69.59896155,2692.1,2692.0,563.2614925]
[1645333060495,73.99041602,2692.1,2692.0,557.6794425]
[1645333060697,58.28896155,2692.1,2692.0,557.6794425]
[1645333060898,62.68041602,2692.1,2692.0,552.0977025]
[1645333061545,62.68041602,2692.1,2692.0,546.5156825]
[1645333061546,73.99041602,2692.1,2692.0,546.5156825]
[1645333061746,58.28896155,2692.1,2692.0,546.5156825]
[1645333062146,62.68041602,2692.1,2692.0,540.9337625]
[1645333062547,62.68041602,2692.1,2692.0,535.3518925]
[1645333062846,124.69066055,2692.1,2692.0,535.3518925]
[1645333063047,124.69066055,2692.1,2692.0,529.7702325]
[1645333063246,125.06066055,2692.1,2692.0,529.7702325]
[1645333063448,141.32599302,2692.1,2692.0,529.7702325]
[1645333063646,130.90599302,2692.1,2692.0,524.1885125]
[1645333063852,126.51453855,2692.1,2692.0,524.1885125]
[1645333064047,127.17551155,2692.1,2692.0,518.6067825]
[1645333064248,131.90096602,2692.1,2692.0,518.6067825]
[1645333064650,143.75376502,2692.1,2692.0,513.0250125]
[1645333064848,136.34083802,2692.1,2692.0,513.0250125]
[1645333065148,143.75376502,2692.1,2692.0,507.4428625]
[1645333065394,143.75376502,2692.1,2692.0,492.65723962]
[1645333065598,137.65939102,2692.1,2692.0,487.17937962]
[1645333065795,128.05231055,2692.1,2692.0,456.87704962]
[1645333065994,142.77807802,2692.1,2692.0,456.87704962]
[1645333066195,131.39467802,2692.1,2692.0,451.22188962]
[1645333066402,129.42967902,2692.1,2692.0,451.22188962]
[1645333066795,129.42967902,2692.1,2692.0,445.64025962]
[1645333066995,137.15822355,2692.1,2692.0,445.64025962]
[1645333067198,129.43967802,2692.1,2692.0,445.64025962]
[1645333067395,129.02867802,2692.1,2692.0,440.05851962]
[1645333067601,129.81867902,2692.1,2692.0,440.05851962]
[1645333067797,129.81867902,2692.1,2692.0,434.47661962]
[1645333067798,129.79187902,2692.1,2692.0,434.47661962]
[1645333068096,142.02863302,2692.1,2692.0,434.41671962]
[1645333068296,124.87325253,2692.1,2692.0,428.83516962]
[1645333068495,124.06325353,2692.1,2692.0,428.83516962]
[1645333068900,124.06325353,2692.1,2692.0,423.25394962]
[1645333069342,123.74025253,2692.1,2692.0,423.25394962]
[1645333069545,123.74025253,2692.1,2692.0,417.67268962]
[1645333069946,81.44595836,2692.1,2692.0,417.67268962]
[1645333070145,73.61088636,2692.1,2692.0,417.67268962]
[1645333070345,37.34690336,2692.1,2692.0,417.67268962]
[1645333070549,48.5807862,2692.1,2692.0,408.90654335]
[1645333070747,71.1333382,2692.1,2692.0,320.74172897]
[1645333070945,93.63144936,2692.1,2692.0,320.74172897]
[1645333071146,96.87940936,2692.1,2692.0,314.60606533]
[1645333071452,130.49125136,2692.1,2692.0,314.60606533]
[1645333071646,107.94906361,2692.1,2692.0,308.02435533]
[1645333071847,141.97889661,2692.1,2692.0,308.02435533]
[1645333072045,144.26412161,2692.1,2692.0,308.01435533]
[1645333072246,144.26412161,2692.1,2692.0,300.7878493]
[1645333072448,144.26412161,2692.1,2692.0,300.7693493]
[1645333072449,124.75374561,2692.1,2692.0,300.7693493]
[1645333072647,123.26074461,2692.1,2692.0,300.7693493]
[1645333072894,123.09783861,2692.1,2692.0,295.1877393]
[1645333073099,124.03583461,2692.1,2692.0,294.6677393]
[1645333073296,122.46141761,2692.1,2692.0,294.6677393]
[1645333073496,126.22326708,2692.1,2692.0,289.0865293]
[1645333073696,104.27058908,2692.1,2692.0,289.0865293]
[1645333073896,126.94729908,2692.1,2692.0,283.5052093]
[1645333074200,126.12769308,2692.1,2692.0,283.5052093]
[1645333074394,138.06729808,2692.1,2692.0,277.9236993]
[1645333074598,140.19523008,2692.1,2692.0,277.88649498]
[1645333074794,117.17059008,2692.1,2692.0,277.88649498]
[1645333074996,117.17059008,2692.1,2692.0,272.30462498]
[1645333074997,140.31534008,2692.1,2692.0,272.30462498]
[1645333075196,140.30534108,2692.1,2692.0,272.30462498]
[1645333075396,140.30534108,2692.1,2692.0,272.09562051]
[1645333075597,140.31434008,2692.1,2692.0,266.11366051]
[1645333075798,141.65205508,2692.1,2692.0,266.11366051]
[1645333075998,108.16715508,2692.1,2692.0,266.11366051]
[1645333076200,143.29752408,2692.1,2692.0,260.49118576]
[1645333076398,143.36259308,2692.1,2692.0,260.49118576]
[1645333076653,143.36259308,2692.1,2692.0,254.90959576]
[1645333076654,128.72986108,2692.1,2692.0,254.90959576]
[1645333076854,106.67026508,2692.1,2692.0,254.48432076]
[1645333077053,122.94303208,2692.1,2692.0,248.90295076]
[1645333077248,134.25303208,2692.1,2692.0,248.90295076]
[1645333077452,134.88325808,2692.1,2692.0,248.35044276]
[1645333077650,134.24103208,2692.1,2692.0,242.76873276]
[1645333077850,134.24103208,2692.1,2692.0,242.01313651]
[1645333078051,135.67459608,2692.1,2692.0,242.01313651]
[1645333078252,138.14476008,2692.1,2692.0,236.43110651]
[1645333078452,139.68544708,2692.1,2692.0,229.80071089]
[1645333078657,135.83556108,2692.1,2692.0,229.80071089]
[1645333078850,135.69396108,2692.1,2692.0,224.21877089]
[1645333079353,135.69396108,2692.1,2692.0,218.59608614]
[1645333079550,135.69396108,2692.1,2692.0,218.55908614]
[1645333079752,135.96738408,2692.1,2692.0,218.55908614]
[1645333079951,132.40313503,2692.1,2692.0,212.92152966]
[1645333080598,135.40250803,2692.1,2692.0,207.00692115]
[1645333081000,131.09250803,2692.1,2692.0,207.00692115]
[1645333081200,131.06550903,2692.1,2692.0,201.42540115]
[1645333081401,128.17295503,2692.1,2692.0,201.42540115]
[1645333081607,128.02414703,2692.1,2692.0,195.84393115]
[1645333081905,123.60369256,2692.1,2692.0,195.84393115]
[1645333082103,99.12643356,2692.1,2692.0,190.26291115]
[1645333082302,118.15521756,2692.1,2692.0,190.26291115]
[1645333082503,114.70221756,2692.1,2692.0,190.26291115]
[1645333082701,106.67221756,2692.1,2692.0,184.68158115]
[1645333082902,106.64421756,2692.1,2692.0,184.68158115]
[1645333083305,106.64421756,2692.1,2692.0,179.10019115]
[1645333083704,106.62721756,2692.1,2692.0,179.10019115]
[1645333083903,106.61921656,2692.1,2692.0,173.51887115]
[1645333084347,106.61921656,2692.1,2692.0,167.93730115]
[1645333084556,110.09652656,2692.1,2692.0,167.93730115]
[1645333085046,110.07352756,2692.1,2692.0,162.35561115]
[1645333085447,110.07352756,2692.1,2692.0,156.77404115]
[1645333085846,110.40172356,2692.1,2692.0,156.77404115]
[1645333086046,110.40172356,2692.1,2692.0,151.19249115]
[1645333086546,110.39172456,2692.1,2692.0,145.61076115]
[1645333086754,84.68025356,2692.1,2692.0,145.61076115]
[1645333086945,84.99157156,2692.1,2692.0,145.61076115]
[1645333087151,107.97841256,2692.1,2692.0,140.02880115]
[1645333087545,108.07141156,2692.1,2692.0,134.44706115]
[1645333087802,108.06141256,2692.1,2692.0,134.44706115]
[1645333088000,108.04328856,2692.1,2692.0,134.44706115]
[1645333088202,84.94544656,2692.1,2692.0,128.86529115]
[1645333088403,149.42412956,2692.1,2692.0,128.86529115]
[1645333088600,154.88037403,2692.1,2692.0,123.28337115]
[1645333088800,170.68646903,2692.1,2692.0,122.53137115]
[1645333089000,154.98501456,2692.1,2692.0,122.53137115]
[1645333089201,85.97565456,2692.1,2692.0,116.94986115]
[1645333089399,137.37323656,2692.1,2692.0,116.94986115]
[1645333089601,141.76469103,2692.1,2692.0,111.36818115]
[1645333089805,166.56469103,2692.1,2692.0,111.36818115]
[1645333090005,171.56469103,2692.1,2692.0,108.39110957]
[1645333090200,173.99861303,2692.1,2692.0,102.80937957]
[1645333090402,163.00415856,2692.1,2692.0,102.80937957]
[1645333090700,133.43823656,2692.1,2692.0,97.22781957]
[1645333090900,155.43615656,2692.1,2692.0,97.22781957]
[1645333091101,166.63615656,2692.1,2692.0,97.22781957]
[1645333091302,173.41615656,2692.1,2692.0,91.64603957]
[1645333091559,178.01615656,2692.1,2692.0,88.97222894]
[1645333091760,176.16288456,2692.1,2692.0,83.37304894]
[1645333091959,175.86288456,2692.1,2692.0,83.37304894]
[1645333092160,175.86288456,2692.1,2692.0,82.94935217]
[1645333092364,118.86288456,2692.1,2692.0,77.36746217]
[1645333092563,37.18611616,2692.1,2692.0,77.36746217]
[1645333092759,75.37905316,2692.1,2692.0,71.78568217]
[1645333092958,122.91393316,2692.1,2692.0,71.21868217]
[1645333093159,128.07730216,2692.1,2692.0,71.21868217]
[1645333093369,128.07730216,2692.1,2692.0,53.66085521]
[1645333093370,142.29290363,2692.1,2692.0,53.66085521]
[1645333093566,1.861051,2691.8,2690.8,2.90368802]
[1645333093765,4.7915628,2692.0,2690.1,0.1857]
[1645333093766,6.698,2690.9,2690.5,7.40607265]
[1645333093973,53.54126931,2689.8,2689.5,6.10215159]
[1645333094165,55.40265931,2689.8,2689.7,1.05013926]
[1645333094362,55.70265931,2689.8,2689.7,1.05013926]
[1645333094563,56.00265931,2689.8,2689.1,4.19232816]
[1645333094763,56.00265931,2689.8,2688.6,7.32]
[1645333094764,0.62146496,2688.9,2688.6,7.32]
[1645333094967,0.62146496,2688.9,2688.7,1.58081434]
[1645333095161,0.536,2689.3,2688.7,1.58081434]
[1645333095162,48.79174115,2688.8,2688.7,1.58081434]
[1645333095411,48.79174115,2688.8,2688.4,0.13167181]
[1645333095612,0.62146496,2688.7,2688.5,2.55664247]
[1645333095814,48.79174115,2688.7,2688.6,1.95224532]
[1645333096012,46.83949583,2688.6,2688.5,5.97569715]
[1645333096210,0.62146496,2688.6,2688.5,0.97569715]
[1645333096412,20.03181305,2688.6,2688.5,0.97569715]
[1645333096813,20.03181305,2688.6,2688.5,6.34699715]
[1645333097209,20.03181305,2688.6,2688.5,1.34699715]
[1645333099147,18.53181305,2688.6,2688.5,1.34699715]
[1645333099347,1.86155,2689.6,2688.7,0.3713]
[1645333099550,0.93068,2689.7,2688.7,11.5073513]
[1645333099748,1.23068,2689.7,2688.7,11.5073513]
[1645333100449,0.93072,2689.4,2688.7,6.5073513]
[1645333100648,0.3,2689.7,2689.1,0.00179896]
[1645333100847,0.3,2689.7,2689.2,1.05057702]
[1645333101154,1.0219,2689.9,2689.2,1.05057702]
[1645333101155,1.3219,2689.9,2689.2,1.05057702]
[1645333101748,0.1859,2689.8,2689.4,0.00179872]
[1645333101948,0.93064,2689.7,2689.4,0.00179872]
[1645333102348,1.8615,2689.6,2689.4,0.00179872]
[1645333102820,1.8615,2689.6,2689.2,1.05057702]
[1645333103216,2.0474,2689.6,2689.2,1.05057702]
[1645333103818,0.1859,2689.6,2689.3,6.1360513]
[1645333104017,0.1859,2690.0,2689.2,1.05057702]
[1645333104215,0.1859,2690.0,2689.2,7.18662832]
[1645333104415,0.1859,2690.0,2689.2,7.55792832]
[1645333104617,0.01251024,2691.8,2691.0,1.17239105]
[1645333104814,6.698,2691.3,2691.0,1.17239105]
[1645333105016,0.536,2691.2,2689.6,0.01293791]
[1645333105418,0.08611616,2691.1,2689.6,0.01293791]
[1645333105615,0.93046,2690.7,2689.4,25.3409513]
[1645333105815,0.536,2690.6,2689.4,25.7122513]
[1645333106015,0.536,2690.6,2690.3,0.88292868]
[1645333106218,1.136,2690.6,2690.3,0.88292868]
[1645333106655,0.93045,2690.5,2690.3,0.88292868]
[1645333108350,0.93045,2690.5,2690.3,0.56305668]
[1645333108751,1.01656616,2690.5,2690.3,0.56305668]
[1645333109052,1.01656616,2690.5,2690.3,0.56537942]
[1645333109252,1.01656616,2690.5,2690.3,0.00232274]
[1645333109454,0.5,2690.4,2690.3,0.00232274]
[1645333109650,2.66106,2690.4,2690.3,0.00232274]
[1645333109855,2.66106,2690.4,2689.9,0.00929235]
[1645333110053,0.83053,2690.1,2689.4,11.8633513]
[1645333110303,0.83053,2690.1,2689.8,0.00929252]
[1645333110508,0.83053,2690.1,2689.9,0.94099635]
[1645333110703,0.83053,2690.1,2689.9,0.92938135]
[1645333111502,0.83053,2690.1,2689.9,0.93170443]
[1645333111904,0.83053,2690.1,2689.9,0.75782343]
[1645333112504,0.83053,2690.1,2689.9,0.75550035]
[1645333112705,0.83053,2690.1,2689.9,0.75782343]
[1645333113109,0.93042,2690.3,2690.0,6.0959712]
[1645333113504,0.93042,2690.3,2689.9,0.75550035]
[1645333114048,0.93042,2690.3,2690.0,0.00232296]
[1645333114449,0.93042,2690.3,2690.0,6.09829416]
[1645333114750,0.93042,2690.3,2689.9,0.75550035]
[1645333114948,0.93042,2690.3,2690.0,0.00232296]
[1645333115351,1.1,2690.4,2690.0,6.09829416]
[1645333115753,1.1,2690.4,2690.0,0.00232296]
[1645333115950,0.8,2690.4,2689.9,0.75550035]
[1645333116157,0.8,2690.4,2690.1,0.00232291]
[1645333116952,0.7,2690.4,2690.1,0.00232291]
[1645333117153,0.7,2690.4,2689.9,0.75550035]
[1645333117352,0.93043,2690.3,2690.1,0.00232287]
[1645333118402,0.93043,2690.3,2689.9,0.75550035]
[1645333118596,0.93043,2690.3,2690.1,0.00232291]
[1645333119598,0.93043,2690.3,2689.9,0.75550035]
[1645333119796,0.93043,2690.3,2690.1,0.00232291]
[1645333120901,0.93043,2690.3,2689.9,0.75550035]
[1645333121099,0.93043,2690.3,2690.1,0.00232291]
[1645333121951,0.93043,2690.3,2689.9,0.75550035]
[1645333122150,0.93043,2690.3,2690.1,0.00232291]
[1645333123153,0.93043,2690.3,2689.9,0.75550035]
[1645333123355,0.93043,2690.3,2690.1,0.00232291]
[1645333123560,0.93043,2690.3,2690.2,1.06961941]
[1645333125165,0.93043,2690.3,2690.1,0.00232287]
[1645333125407,1.23043,2690.3,2690.1,0.00232287]
[1645333125611,0.536,2690.2,2689.6,6.04527816]
[1645333125810,0.93072,2690.0,2689.5,6.04527816]
[1645333126006,2.06672,2690.0,2689.7,0.00929304]
[1645333126213,2.06672,2690.0,2689.9,1.09280699]
[1645333126606,2.25242,2690.0,2689.9,1.09280699]
[1645333126809,2.25242,2690.0,2689.5,6.04527816]
[1645333127006,2.25242,2690.0,2689.8,0.00232313]
[1645333127007,2.06672,2690.0,2689.8,0.00232313]
[1645333128011,2.06672,2690.0,2689.3,6.04527816]
[1645333128212,1.76672,2690.0,2689.9,1.1048484]
[1645333128412,0.93072,2690.0,2689.9,1.1048484]
[1645333129249,1.23072,2690.0,2689.9,1.1048484]
[1645333130348,0.93072,2690.0,2689.9,1.1048484]
[1645333131849,0.93044,2690.3,2689.9,1.1048484]
[1645333132250,1.23044,2690.3,2689.9,1.1048484]
[1645333132652,1.23044,2690.3,2690.0,6.04527816]
[1645333132901,1.23044,2690.3,2689.9,1.1048484]
[1645333133104,1.23044,2690.3,2690.0,0.00206166]
[1645333133902,1.23044,2690.3,2689.9,1.1048484]
[1645333134104,1.86132,2690.2,2689.9,1.1048484]
[1645333134303,1.86132,2690.2,2690.0,0.00206162]
[1645333134499,2.16132,2690.2,2690.0,0.00206162]
[1645333134705,2.16132,2690.2,2689.9,1.05691002]
[1645333137262,2.16132,2690.2,2689.5,0.00223765]
[1645333137263,1.86131,2690.1,2689.5,0.00223765]
[1645333137557,1.86131,2690.1,2689.2,3.125]
[1645333137957,1.86131,2690.1,2689.3,0.00223786]
[1645333138355,1.86131,2690.1,2689.9,1.18910307]
[1645333139157,1.86131,2690.1,2689.9,1.19096238]
[1645333139361,1.86131,2690.1,2689.9,0.00185931]
[1645333140057,1.86131,2690.1,2689.2,3.125]
[1645333140308,1.86131,2690.1,2689.9,0.00204723]
[1645333140507,1.86131,2690.1,2690.0,1.12716164]
[1645333143109,1.86131,2690.1,2689.9,0.00204723]
[1645333143712,1.86131,2690.1,2689.2,3.125]
[1645333143911,1.86131,2690.1,2689.9,0.0018573]
[1645333144150,1.86131,2690.1,2689.9,1.16009947]
[1645333144749,1.86131,2690.1,2689.9,1.15824217]
[1645333144955,1.86131,2690.1,2689.9,1.16009947]
[1645333145949,1.86131,2690.1,2689.9,1.15824217]
[1645333146151,1.86131,2690.1,2689.9,1.16009947]
[1645333146950,2.16131,2690.1,2689.9,1.16009947]
[1645333147154,2.16131,2690.1,2689.9,1.15824217]
[1645333147552,2.16131,2690.1,2689.9,1.16014221]
[1645333148007,0.6,2690.1,2689.9,1.16014221]
[1645333148202,1.86131,2690.0,2689.9,1.16014221]
[1645333148406,1.86131,2690.0,2689.9,1.15824217]
[1645333148407,2.86131,2690.0,2689.9,1.15824217]
[1645333148603,2.86131,2690.0,2689.9,1.16014221]
[1645333149605,2.86131,2690.0,2689.3,1.1274]
[1645333149809,2.86131,2690.0,2689.8,0.00190007]
[1645333150907,2.86131,2690.0,2689.7,1.16036439]
[1645333151107,2.86131,2690.0,2689.8,0.00189049]
[1645333151950,2.86131,2690.0,2689.7,1.16036439]
[1645333152149,3.04701,2690.0,2689.7,0.66036439]
[1645333152353,3.04701,2690.0,2689.8,0.00189049]
[1645333152549,3.04701,2690.0,2689.4,0.0075631]
[1645333152768,3.58301,2690.0,2689.4,0.0075631]
[1645333153250,3.66912616,2690.0,2688.9,3.9366]
[1645333153450,4.87982616,2690.0,2688.9,3.9366]
[1645333153753,4.87982616,2690.0,2689.2,0.91926048]
[1645333153956,0.93088,2689.1,2688.8,494.86401299]
[1645333154352,2.53088,2689.1,2688.8,494.86401299]
[1645333154557,1.53088,2689.1,2688.8,494.86401299]
[1645333154752,1.0,2689.0,2688.8,494.86401299]
[1645333155151,2.53088,2689.1,2688.9,1.09041301]
[1645333155802,1.93088,2689.1,2688.9,1.09041301]
[1645333156003,1.93088,2689.1,2688.9,0.70279532]
[1645333156202,2.23088,2689.1,2688.9,0.70279532]
[1645333156405,2.53088,2689.1,2688.9,0.70279532]
[1645333157909,2.53088,2689.1,2688.8,493.79021888]
[1645333157910,0.536,2689.0,2688.8,493.79021888]
[1645333158208,40.775662,2688.9,2688.8,487.64803888]
[1645333158408,58.125514,2688.9,2688.8,485.58418888]
[1645333158605,168.84213623,2688.9,2688.8,467.87418888]
[1645333158803,164.42155339,2688.9,2688.8,467.87418888]
[1645333159062,172.14669739,2688.9,2688.8,456.94405875]
[1645333159262,210.55750439,2688.9,2688.8,450.78779875]
[1645333159465,250.18160339,2688.9,2688.8,443.30210498]
[1645333159664,211.12970539,2688.9,2688.8,442.17995498]
[1645333159867,186.58240816,2688.9,2688.8,440.90595498]
[1645333160066,144.08081163,2688.9,2688.8,434.77796498]
[1645333160263,150.35878663,2688.9,2688.8,433.77796498]
[1645333160467,145.38293163,2688.9,2688.8,432.09996498]
[1645333160665,151.00895663,2688.9,2688.8,425.39340498]
[1645333160863,153.51702547,2688.9,2688.8,425.39340498]
[1645333161064,153.51702547,2688.9,2688.8,412.84204498]
[1645333161065,157.08009463,2688.9,2688.8,412.84204498]
[1645333161262,168.79153263,2688.9,2688.8,412.84204498]
[1645333161464,148.48327463,2688.9,2688.8,405.38962498]
[1645333161665,178.13650263,2688.9,2688.8,399.70035498]
[1645333161867,178.13650263,2688.9,2688.8,399.65565259]
[1645333162064,155.19414063,2688.9,2688.8,393.86697259]
[1645333162265,153.68513963,2688.9,2688.8,393.37524626]
[1645333162467,190.36213863,2688.9,2688.8,393.37524626]
[1645333162671,199.54302801,2688.9,2688.8,380.25798337]
[1645333162915,236.49514201,2688.9,2688.8,353.18048492]
[1645333163113,236.49514201,2688.9,2688.8,330.82827192]
[1645333163114,246.58055301,2688.9,2688.8,330.82827192]
[1645333163316,257.11268201,2688.9,2688.8,276.72132774]
[1645333163520,178.33535001,2688.9,2688.8,113.5840759]
[1645333163716,198.42548201,2688.9,2688.8,101.0983473]
[1645333163917,198.42548201,2688.9,2688.8,100.54662398]
[1645333163918,184.40948201,2688.9,2688.8,100.54662398]
[1645333164214,191.41188201,2688.9,2688.8,86.96632102]
[1645333164417,191.41748201,2688.9,2688.8,83.52805956]
[1645333164622,186.61978501,2688.9,2688.8,50.85209089]
[1645333164816,186.62538501,2688.9,2688.8,50.45209089]
[1645333165016,163.81510952,2688.9,2688.8,30.40146031]
[1645333165221,168.40950952,2688.9,2688.8,16.42552031]
[1645333165414,168.40950952,2688.9,2688.8,11.17330311]
[1645333165415,168.41663858,2688.9,2688.8,11.17330311]
[1645333165616,168.41663858,2688.9,2688.8,4.24699422]
[1645333165813,168.42623858,2688.9,2688.8,4.24699422]
[1645333166116,168.41663858,2688.9,2688.8,4.24699422]
[1645333166315,0.93168,2688.3,2686.2,0.93440601]
[1645333166570,6.698,2687.9,2686.3,3.65743571]
[1645333166773,6.698,2687.4,2686.3,0.00273601]
[1645333166975,4.19726399,2686.3,2686.2,0.13819997]
[1645333167270,5.16406402,2686.2,2686.0,0.93164]
[1645333167501,0.536,2686.1,2684.8,3.72654]
[1645333167677,0.536,2686.1,2685.1,1.58098459]
[1645333167678,6.698,2685.7,2685.1,1.58098459]
[1645333167884,1.29628844,2685.2,2684.5,3.72639]
[1645333168169,1.105,2685.0,2684.6,0.00269871]
[1645333168372,8.844e-05,2685.2,2684.7,65.79157962]
[1645333168770,0.02312906,2684.9,2683.6,6.5247132]
[1645333168975,0.55912906,2684.9,2683.9,0.00268542]
[1645333169171,8.844e-05,2685.2,2684.5,5.0]
[1645333169367,8.844e-05,2685.2,2684.1,2.55933144]
[1645333169669,8.844e-05,2685.2,2684.7,5.0]
[1645333169869,8.844e-05,2685.2,2684.8,5.0]
[1645333170066,8.844e-05,2685.2,2685.1,5.0]
[1645333170319,8.844e-05,2685.2,2684.9,0.536]
[1645333170511,8.844e-05,2685.2,2685.1,4.95]
[1645333170909,8.844e-05,2685.2,2685.1,5.486]
[1645333171206,8.844e-05,2685.2,2685.1,6.46948717]
[1645333171709,8.844e-05,2685.2,2685.1,6.4573]
[1645333171908,0.13819997,2687.1,2685.2,0.00071156]
[1645333172105,0.13819997,2687.1,2685.8,4.95]
[1645333172106,0.93159,2686.9,2685.8,4.95]
[1645333172309,0.93159,2686.9,2686.0,5.90311685]
[1645333172507,0.93159,2686.9,2686.1,0.00268452]
[1645333172708,1.86313,2687.2,2686.1,0.00268452]
[1645333172909,0.1862,2687.5,2686.3,0.3713]
[1645333173216,0.13058,2688.8,2686.8,4.95]
[1645333173217,0.186,2687.8,2686.8,4.95]
[1645333173415,0.05,2688.5,2687.2,4.95]
[1645333173611,0.186,2688.4,2688.3,0.91916569]
[1645333173910,0.18058,2688.8,2687.8,0.2558]
[1645333173911,0.05,2688.6,2687.9,0.00268452]
[1645333174156,0.13058,2688.8,2687.9,0.00268452]
[1645333174157,0.00350584,2688.2,2687.9,0.00268452]
[1645333174366,0.00350584,2688.2,2687.7,0.00268452]
[1645333174557,0.00350584,2688.2,2687.5,0.00268452]
[1645333174558,0.186,2688.1,2687.5,0.00268452]
[1645333174757,0.05,2687.8,2687.1,0.00268452]
[1645333174960,0.186,2688.1,2687.1,0.00268452]
[1645333174961,0.05,2687.7,2687.1,0.00268452]
[1645333175360,0.9313,2687.9,2687.1,0.00268452]
[1645333175764,1.5313,2687.9,2687.1,0.00268452]
[1645333175961,1.2313,2687.9,2687.1,0.00268452]
[1645333176162,2.5313,2687.9,2687.1,0.00268452]
[1645333176361,0.93135,2687.6,2687.2,0.95737944]
[1645333176560,0.93135,2687.6,2687.3,0.00268452]
[1645333176760,1.23135,2687.6,2687.2,0.95737944]
[1645333177564,0.05,2687.3,2687.2,0.95737944]
[1645333177822,0.05,2687.3,2687.0,0.00268452]
[1645333178009,0.98174,2687.1,2686.6,0.00268452]
[1645333178314,1.28174,2687.1,2685.8,4.95905383]
[1645333178512,0.186,2687.0,2685.8,4.95268452]
[1645333178713,0.186,2687.0,2685.9,0.3713]
[1645333178908,0.186,2687.0,2686.1,4.95]
[1645333179209,0.186,2687.0,2686.2,0.00268452]
[1645333179410,3.16347,2687.2,2686.2,0.00268452]
[1645333179609,3.16347,2687.2,2687.0,1.13315024]
[1645333179610,2.16347,2687.2,2687.0,1.13315024]
[1645333179811,1.186,2687.1,2687.0,1.13315024]
[1645333180010,0.536,2687.1,2687.0,1.13315024]
[1645333180208,1.536,2687.1,2687.0,1.13315024]
[1645333180413,1.86356,2686.8,2685.9,0.00268452]
[1645333180611,0.722,2686.7,2685.9,0.00268452]
[1645333180817,0.05,2686.0,2685.9,0.00268452]
[1645333181011,0.98197,2686.0,2685.8,0.00905383]
[1645333181212,1.58197,2686.0,2685.5,0.00268452]
[1645333181411,1.58197,2686.0,2685.9,0.99994656]
[1645333181853,2.58197,2686.0,2685.9,0.99994656]
[1645333182055,2.53197,2686.0,2685.9,0.99994656]
[1645333182558,2.23197,2686.0,2685.9,0.99994656]
[1645333182755,0.93197,2686.0,2685.9,0.99994656]
[1645333183157,0.93197,2686.0,2685.9,0.80034656]
[1645333183755,1.0,2686.3,2685.9,0.80034656]
[1645333183756,1.93175,2686.3,2685.9,0.80034656]
[1645333184158,0.93175,2686.3,2685.9,0.80034656]
[1645333184857,1.23175,2686.3,2685.9,0.80034656]
[1645333185061,1.28175,2686.3,2685.9,0.80034656]
[1645333185505,1.58175,2686.3,2685.9,0.80034656]
[1645333185707,1.91393,2686.0,2685.9,0.80034656]
[1645333185909,2.86393,2686.0,2685.9,0.80034656]
[1645333186105,3.16393,2686.0,2685.9,0.80034656]
[1645333187608,1.47575041,2686.0,2685.9,0.80034656]
[1645333187806,0.93196,2686.1,2685.9,0.80034656]